bitfinex/quotes_ETHUSD_20241203
["timestamp","ask_amount","ask_price","bid_price","bid_amount"]
[1733245400521,3.68085249,3555.7,3554.2,2.81357]
[1733245400721,3.68085249,3555.7,3553.7,3.0]
[1733245400722,0.86845249,3555.7,3553.7,3.0]
[1733245400967,0.8333,3555.1,3553.3,2.81423]
[1733245401168,0.58516826,3555.0,3553.2,3.28912276]
[1733245401333,3.5307198,3555.0,3553.8,2.81381]
[1733245401670,0.55,3554.8,3553.9,2.81373]
[1733245401964,0.1677498,3555.0,3553.3,0.40430228]
[1733245401965,0.03516826,3554.7,3553.7,2.81395]
[1733245402168,0.55,3554.6,3553.5,3.0]
[1733245402334,0.55,3554.9,3553.9,2.81378]
[1733245402537,0.70862181,3554.9,3553.9,2.81378]
[1733245402729,0.70862181,3554.9,3554.0,2.81369]
[1733245402931,0.8333,3555.1,3554.1,0.01438898]
[1733245403147,0.8333,3555.1,3554.8,2.81302]
[1733245403433,12.12327713,3556.4,3554.0,7.24112771]
[1733245403434,1.12113106,3555.6,3555.1,2.81282]
[1733245403670,0.29373106,3555.6,3555.4,2.81256]
[1733245403854,0.29373106,3555.6,3555.1,3.0]
[1733245404061,0.29373106,3555.6,3555.5,2.81254]
[1733245404261,0.29373106,3555.6,3555.2,0.6635289]
[1733245404576,0.7502,3555.5,3554.3,3.0]
[1733245404877,0.03515817,3555.4,3554.4,2.8134]
[1733245405083,3.56277,3555.5,3554.4,2.8134]
[1733245405240,0.03516241,3555.4,3554.1,2.81359]
[1733245405441,0.03516241,3555.4,3554.3,2.81342]
[1733245405688,0.55,3555.2,3554.1,2.81364]
[1733245405849,0.55,3555.0,3553.5,2.81408]
[1733245406051,0.55,3554.8,3553.4,0.01438416]
[1733245406578,0.7833,3555.1,3553.3,1.16050228]
[1733245406579,0.58516548,3555.0,3553.3,1.16050228]
[1733245406744,1.3333,3554.6,3553.3,1.16050228]
[1733245406939,1.3333,3554.6,3553.3,0.7562]
[1733245407140,1.3333,3554.6,3553.6,3.0]
[1733245407357,1.3333,3554.6,3554.3,2.81348]
[1733245407676,1.3333,3554.6,3554.0,2.81365]
[1733245407974,1.3333,3554.6,3553.3,0.7562]
[1733245407975,1.3333,3554.6,3554.3,2.81349]
[1733245408176,0.29380511,3554.7,3554.4,2.81333]
[1733245408366,0.29380511,3554.7,3554.5,2.81326]
[1733245408761,0.29380511,3554.7,3554.3,0.281349]
[1733245408999,0.29380511,3554.7,3554.3,2.81347]
[1733245409320,0.29380511,3554.7,3554.4,2.81339]
[1733245410016,0.29380511,3554.7,3553.7,3.0]
[1733245410254,0.29380511,3554.7,3554.6,2.81325]
[1733245410379,0.7801,3555.4,3555.0,2.81291]
[1733245410578,0.7503,3555.8,3555.1,2.81285]
[1733245410811,0.29371694,3555.3,3555.1,2.81285]
[1733245411015,0.7503,3555.8,3555.0,3.0]
[1733245411218,0.29370647,3555.3,3555.0,2.81293]
[1733245411375,0.29370647,3555.3,3555.2,2.81278]
[1733245411581,0.7503,3555.8,3555.2,0.562579]
[1733245411918,0.29368376,3555.3,3555.0,2.81293]
[1733245412076,0.7503,3555.8,3554.8,3.0]
[1733245412273,3.56262,3555.8,3554.8,3.0]
[1733245412478,0.2937115,3555.3,3554.8,3.0]
[1733245412714,3.56262,3555.8,3554.8,3.0]
[1733245412929,0.29371124,3555.3,3554.9,0.01437039]
[1733245413234,0.55,3555.7,3555.0,2.81293]
[1733245413391,0.55,3555.7,3554.2,0.7671]
[1733245413392,0.29370185,3555.3,3554.2,0.7671]
[1733245413591,0.29370185,3555.3,3554.8,3.0]
[1733245413914,0.29370185,3555.3,3554.9,2.81301]
[1733245414122,0.29370185,3555.3,3555.0,0.0143689]
[1733245414333,0.29370185,3555.3,3555.2,2.81278]
[1733245414927,0.29370185,3555.3,3555.2,5.82714098]
[1733245415225,0.29370185,3555.3,3555.2,6.7539231]
[1733245415428,0.7669,3556.3,3555.2,6.7539231]
[1733245415624,1.02520867,3557.2,3556.0,2.81214]
[1733245415826,1.02519404,3557.2,3555.5,2.81254]
[1733245416027,0.29362921,3556.5,3555.9,3.0]
[1733245416329,0.7669,3557.2,3556.0,0.59557099]
[1733245416594,0.7669,3557.2,3556.6,2.81163]
[1733245416898,0.29357866,3557.1,3556.6,2.81163]
[1733245417103,0.29357866,3557.1,3556.1,3.7713]
[1733245417104,0.29357866,3557.1,3556.1,0.7713]
[1733245417419,0.29357866,3557.1,3556.3,5.8119]
[1733245417633,0.29357866,3557.1,3556.4,0.65832]
[1733245418013,0.29357866,3557.1,3556.4,3.47014]
[1733245418641,0.29357866,3557.1,3556.4,0.65832]
[1733245418819,0.29357866,3557.1,3556.4,3.47014]
[1733245419451,0.29357866,3557.1,3556.4,0.65832]
[1733245420219,0.29357866,3557.1,3556.5,0.64703]
[1733245420956,0.29357866,3557.1,3556.2,3.01433426]
[1733245421181,0.29357866,3557.1,3557.0,2.81135]
[1733245421749,0.7722,3558.1,3557.0,6.64225]
[1733245422061,0.29351865,3557.6,3557.3,3.0]
[1733245422359,0.29351865,3557.6,3557.0,0.8309]
[1733245422360,0.7722,3558.1,3557.5,3.0]
[1733245422559,0.7722,3558.1,3557.0,0.8309]
[1733245422560,0.7722,3558.1,3557.6,0.5811]
[1733245422779,0.29350137,3557.9,3557.1,2.81127]
[1733245423064,0.29350137,3557.9,3557.5,3.0]
[1733245423362,0.29350137,3557.9,3557.5,5.81092]
[1733245423534,0.29350137,3557.9,3557.1,2.81123]
[1733245423735,0.29350137,3557.9,3557.6,2.81083]
[1733245424109,0.29350137,3557.9,3557.7,0.281083]
[1733245425755,0.29350137,3557.9,3557.7,3.091873]
[1733245425965,0.29350137,3557.9,3557.8,2.82503279]
[1733245426127,0.29350137,3557.9,3557.8,5.82503279]
[1733245426327,0.29350137,3557.9,3557.8,5.81072]
[1733245426675,0.29350137,3557.9,3557.8,0.8902703]
[1733245427527,0.29350137,3557.9,3557.8,2.81072]
[1733245427945,0.29350137,3557.9,3557.8,5.81072]
[1733245428143,0.29350137,3557.9,3557.8,6.57972545]
[1733245428393,0.7972,3559.3,3558.2,3.0]
[1733245428576,0.29343414,3558.8,3558.7,2.81]
[1733245428888,0.29343414,3558.8,3558.7,3.091]
[1733245429249,0.29343414,3558.8,3558.7,6.8417]
[1733245429448,0.7553,3559.7,3559.1,3.0]
[1733245429681,0.7553,3559.7,3559.0,2.80973]
[1733245429846,0.7553,3559.7,3558.7,1.0317]
[1733245429847,0.29339348,3559.5,3558.7,1.0317]
[1733245430047,0.29339348,3559.5,3559.1,2.80962]
[1733245430248,0.29339348,3559.5,3559.3,2.80951]
[1733245430449,0.7553,3560.0,3559.1,2.80968]
[1733245430657,0.29335705,3559.5,3559.1,2.80968]
[1733245430890,0.29335705,3559.5,3558.9,2.80985]
[1733245431088,0.7553,3560.0,3558.9,2.80985]
[1733245431291,0.29336435,3559.4,3559.0,2.80977]
[1733245431492,0.29336435,3559.4,3558.8,3.684182]
[1733245431707,0.55,3559.9,3559.1,2.80968]
[1733245431865,0.29335846,3559.3,3558.8,3.684182]
[1733245432198,0.55,3559.9,3559.2,2.80962]
[1733245432349,0.29334522,3559.2,3558.8,3.684182]
[1733245432550,0.55,3559.9,3558.9,0.7244892]
[1733245432745,1.3499,3559.7,3558.6,2.81001]
[1733245432947,1.3499,3559.7,3558.2,0.8322]
[1733245432948,0.55,3559.0,3558.2,0.8322]
[1733245433181,0.55,3558.8,3557.9,2.81057]
[1733245433499,0.55,3558.8,3557.3,3.63402]
[1733245433715,2.81037,3558.3,3556.9,0.8229]
[1733245433849,0.55,3558.2,3556.9,0.83721472]
[1733245434054,0.8033,3558.5,3557.8,2.8107]
[1733245434249,0.55,3558.4,3557.5,2.81093]
[1733245434565,0.5851268,3558.4,3556.9,0.8229]
[1733245434886,0.55,3558.4,3557.5,2.81096]
[1733245435299,0.55,3558.4,3557.5,3.092056]
[1733245435531,0.55,3558.4,3557.5,0.281096]
[1733245436284,0.55,3558.4,3556.9,0.8229]
[1733245436604,0.55,3558.4,3558.0,2.81055]
[1733245437083,0.55,3558.4,3558.1,2.81046]
[1733245437281,0.55,3558.4,3557.3,0.0143071]
[1733245437599,0.55,3558.4,3557.5,3.0]
[1733245437788,0.55,3558.4,3557.9,2.81062]
[1733245438122,0.55,3558.4,3557.3,2.81105]
[1733245438288,0.55,3558.4,3557.5,2.81096]
[1733245438921,3.36027,3558.4,3556.9,0.8229]
[1733245439223,0.03513079,3558.3,3557.2,2.81117]
[1733245439384,0.55,3558.2,3557.2,3.774577]
[1733245439723,0.55,3558.3,3557.2,3.774577]
[1733245440235,0.55,3558.3,3557.2,0.963407]
[1733245440380,0.55,3558.4,3557.2,2.81119]
[1733245440581,0.55,3558.4,3557.5,3.0]
[1733245440830,0.29346216,3558.3,3557.5,3.0]
[1733245440997,0.55,3558.2,3557.7,2.81078]
[1733245441197,0.55,3558.2,3557.6,2.81087]
[1733245441419,0.55,3558.2,3557.6,0.281087]
[1733245441644,0.29346216,3558.3,3557.2,2.81115]
[1733245441645,0.29346216,3558.3,3558.2,2.8104]
[1733245442285,0.29346216,3558.3,3558.1,3.0]
[1733245442483,0.29346216,3558.3,3556.9,3.63431]
[1733245442820,0.29346216,3558.3,3558.2,2.8104]
[1733245443182,0.8049,3559.4,3559.2,2.80956]
[1733245443433,0.8049,3559.4,3559.3,2.80954]
[1733245443596,0.03511586,3560.7,3558.5,0.01428493]
[1733245443597,0.29338069,3559.7,3559.2,2.80956]
[1733245443940,0.29338069,3559.7,3558.7,0.773]
[1733245443941,1.09828069,3559.7,3559.3,2.80949]
[1733245444221,0.8049,3559.7,3559.5,2.80937]
[1733245444432,0.29335172,3560.4,3559.3,0.280949]
[1733245444433,0.8049,3560.3,3559.6,2.80929]
[1733245444924,0.8049,3560.3,3559.3,3.090459]
[1733245445129,0.29334476,3560.2,3559.3,2.80951]
[1733245445680,0.55,3560.1,3559.4,2.80945]
[1733245446084,0.55,3560.1,3558.9,3.0]
[1733245446327,0.55,3559.9,3558.7,6.58297]
[1733245446526,0.55,3559.9,3558.7,0.773]
[1733245446769,0.55,3560.2,3558.8,0.658317]
[1733245447124,0.55,3560.2,3558.9,3.01428092]
[1733245447326,0.55,3560.2,3559.6,2.80923]
[1733245447983,0.55,3560.2,3559.4,2.80938]
[1733245448321,0.55,3560.2,3559.5,2.80934]
[1733245448634,0.55,3560.2,3558.8,0.658317]
[1733245448837,0.55,3560.0,3558.9,0.4431317]
[1733245449167,0.7575,3560.1,3558.2,0.7603]
[1733245449168,0.55,3559.6,3558.2,0.7603]
[1733245449367,0.55,3559.6,3558.3,0.01429121]
[1733245449522,3.35948,3559.4,3558.3,2.81032]
[1733245449728,3.35948,3559.4,3558.0,2.8105]
[1733245449729,0.55,3559.0,3558.0,2.8105]
[1733245449941,0.55,3559.0,3558.0,0.35888]
[1733245450250,0.55,3559.2,3558.1,0.01430362]
[1733245450452,0.7919,3559.3,3558.6,2.81002]
[1733245450960,0.55,3559.2,3558.5,2.81011]
[1733245451172,0.55,3559.2,3557.8,0.7783]
[1733245451466,0.8146,3558.9,3557.9,3.0]
[1733245451673,0.8146,3558.9,3557.6,3.0]
[1733245451674,2.8103,3558.4,3557.2,2.81116]
[1733245451828,1.3646,3558.3,3557.3,0.281116]
[1733245452160,1.3646,3558.3,3557.4,2.81103]
[1733245452363,1.3646,3558.3,3557.3,0.281116]
[1733245452535,1.3646,3558.3,3557.4,0.01431495]
[1733245452740,1.3646,3558.3,3557.3,0.281116]
[1733245452741,1.3646,3558.3,3557.3,0.29542767]
[1733245452942,1.3646,3558.3,3557.5,2.81096]
[1733245453253,0.8146,3558.3,3557.4,0.3573769]
[1733245453571,3.35972,3559.1,3557.6,3.0]
[1733245453775,0.55,3559.2,3557.6,3.01430114]
[1733245453952,3.0,3559.8,3557.5,4.07524128]
[1733245453953,0.55,3558.4,3557.5,3.0]
[1733245454125,0.55,3558.4,3557.4,0.3573769]
[1733245454126,0.55,3558.2,3557.4,0.3573769]
[1733245454325,0.58512959,3558.4,3556.4,0.7931]
[1733245454326,0.55,3557.9,3556.4,0.7931]
[1733245454530,0.55,3557.5,3556.0,1.37433]
[1733245454727,0.55,3557.5,3556.5,2.81167]
[1733245454973,0.55,3557.5,3556.6,2.8116]
[1733245455141,0.55,3557.5,3556.1,0.01433039]
[1733245455142,0.55,3557.5,3556.4,2.81182]
[1733245455341,2.81113,3557.3,3556.5,0.281182]
[1733245455534,2.81113,3557.3,3556.2,2.81192]
[1733245456048,0.55,3557.1,3556.2,2.81192]
[1733245456531,2.81128,3557.1,3556.0,1.37433]
[1733245456868,0.8194,3557.0,3556.0,2.81213]
[1733245457074,0.55,3556.9,3555.8,3.25200068]
[1733245457271,3.36144,3556.9,3555.8,3.25200068]
[1733245458065,0.55,3556.9,3555.9,2.81215]
[1733245458271,0.55,3556.9,3556.0,3.0]
[1733245458473,0.55,3556.9,3556.1,0.62518707]
[1733245459250,0.55,3556.9,3556.2,3.0]
[1733245459470,0.55,3556.9,3555.9,2.81219]
[1733245459678,0.58514477,3556.9,3555.8,0.43972068]
[1733245459985,0.58514477,3556.9,3555.2,0.7692]
[1733245459986,3.36177,3556.5,3555.4,3.25240216]
[1733245460301,3.36177,3556.5,3555.5,0.40216022]
[1733245460504,0.824,3556.4,3555.5,0.40216022]
[1733245460637,0.55,3556.3,3555.7,2.81236]
[1733245460843,0.824,3556.4,3555.8,0.01435425]
[1733245461040,2.81113,3557.3,3556.1,2.81199]
[1733245461280,2.81113,3557.3,3555.8,3.0]
[1733245461453,2.84636312,3557.2,3556.1,2.81201]
[1733245461646,0.824,3557.4,3555.8,3.0]
[1733245461647,0.824,3557.4,3556.2,0.281201]
[1733245461987,0.824,3557.4,3556.2,3.093181]
[1733245462283,0.55,3557.3,3556.2,0.281201]
[1733245462438,0.824,3557.4,3556.2,0.281201]
[1733245462640,0.824,3557.4,3556.4,2.81179]
[1733245462876,0.824,3557.4,3556.5,0.6092991]
[1733245463093,0.824,3557.4,3556.9,2.81142]
[1733245463391,0.7552,3558.6,3557.0,2.82563939]
[1733245463545,0.7552,3558.6,3557.3,2.81105]
[1733245463546,2.81017,3558.5,3557.3,2.81105]
[1733245463741,0.03513404,3558.4,3557.3,0.28253794]
[1733245463987,0.79033404,3558.4,3557.1,2.81126]
[1733245464858,0.7552,3558.0,3556.5,3.6092991]
[1733245465166,1.3603,3557.6,3556.5,3.6092991]
[1733245465366,0.8103,3557.3,3556.5,0.6092991]
[1733245465597,0.55,3557.2,3556.2,0.281201]
[1733245465958,3.36124,3557.2,3556.2,0.281201]
[1733245466282,0.55,3557.2,3556.6,2.81161]
[1733245466488,0.8103,3557.3,3556.7,2.81153]
[1733245466689,0.8103,3557.3,3556.0,0.01432978]
[1733245466869,0.55,3557.2,3556.2,2.81192]
[1733245467073,0.55,3557.2,3555.7,0.01433689]
[1733245467252,0.55,3557.2,3555.6,3.7767]
[1733245467253,0.55,3557.2,3555.8,0.66035069]
[1733245467484,0.55,3557.2,3556.1,2.81206]
[1733245467688,0.55,3556.8,3555.8,0.66035069]
[1733245467853,3.36169,3556.6,3555.4,3.25243216]
[1733245468061,0.8072,3556.5,3555.5,2.81254]
[1733245468602,0.8072,3556.5,3555.5,0.01434527]
[1733245468901,0.8072,3556.5,3556.2,2.81195]
[1733245469596,0.8072,3556.5,3555.9,5.81215]
[1733245469801,0.8072,3556.5,3556.0,3.881215]
[1733245469983,0.8072,3556.5,3556.0,0.881215]
[1733245470185,0.8072,3556.5,3556.1,2.81206]
[1733245470386,0.8072,3556.5,3555.8,2.81222]
[1733245470683,0.8072,3556.5,3555.4,0.43982216]
[1733245470684,0.8072,3556.5,3555.5,2.81247]
[1733245470889,0.55,3556.4,3555.4,0.43982216]
[1733245471361,0.03515179,3556.3,3555.4,0.43982216]
[1733245471563,0.03515179,3556.3,3554.9,2.81295]
[1733245471762,0.55,3556.0,3554.9,2.81295]
[1733245472059,0.7982,3555.7,3554.6,2.81319]
[1733245472260,0.7982,3555.7,3554.6,2.81318]
[1733245472493,0.7982,3555.7,3554.7,3.375759]
[1733245472656,0.83335727,3555.7,3554.1,2.81357]
[1733245472860,0.55,3555.4,3554.1,2.81357]
[1733245473095,0.0351612,3555.3,3554.4,3.25332064]
[1733245473309,0.8319,3555.5,3554.5,2.81326]
[1733245473526,0.2936847,3555.3,3554.5,2.81326]
[1733245473671,0.7501,3555.1,3554.3,2.81342]
[1733245473871,0.7501,3555.1,3554.4,3.094742]
[1733245474320,0.7501,3555.1,3554.4,0.281342]
[1733245474468,0.7501,3555.1,3554.1,3.0]
[1733245474672,0.7501,3555.1,3553.4,0.43996691]
[1733245474913,0.7501,3555.1,3554.2,2.81357]
[1733245475372,0.7501,3555.1,3553.9,3.0]
[1733245475921,0.7501,3555.1,3553.4,0.43996691]
[1733245476074,0.7501,3555.1,3554.8,2.81307]
[1733245476276,0.7501,3555.1,3554.9,2.81301]
[1733245476871,0.7501,3555.1,3554.8,0.281307]
[1733245477073,0.2936847,3555.3,3554.1,0.7675]
[1733245477391,0.2936847,3555.3,3555.2,2.81278]
[1733245481032,0.2936847,3555.3,3554.6,3.0]
[1733245481184,0.2936847,3555.3,3554.9,2.81298]
[1733245481389,0.2936847,3555.3,3554.2,2.81357]
[1733245481582,0.2936847,3555.3,3555.2,2.81278]
[1733245481781,0.2936847,3555.3,3555.0,2.81291]
[1733245482788,0.2936847,3555.3,3554.8,2.81308]
[1733245482987,0.2936847,3555.3,3554.5,3.0]
[1733245483224,0.2936847,3555.3,3555.2,2.81278]
[1733245483639,0.2936847,3555.3,3555.2,3.094058]
[1733245484117,0.2936847,3555.3,3555.2,6.094058]
[1733245484357,0.7841,3556.2,3556.1,2.81206]
[1733245484501,0.7841,3556.2,3555.7,2.81232]
[1733245484824,0.29363419,3555.9,3555.7,2.81232]
[1733245484988,0.29363419,3555.9,3555.8,3.093532]
[1733245485591,0.29363419,3555.9,3555.2,0.281278]
[1733245485986,0.29363419,3555.9,3555.4,2.81259]
[1733245486685,0.29363419,3555.9,3555.2,2.81277]
[1733245486890,0.29363419,3555.9,3554.8,2.81305]
[1733245487210,0.29363419,3555.9,3555.5,2.81252]
[1733245487613,0.29363419,3555.9,3554.8,2.81305]
[1733245487928,0.29363419,3555.9,3554.9,3.363925]
[1733245488156,0.29363419,3555.9,3555.0,2.81293]
[1733245488303,0.29363419,3555.9,3555.5,2.81254]
[1733245489039,0.29363419,3555.9,3555.1,2.81281]
[1733245489260,0.29363419,3555.9,3555.5,2.81252]
[1733245489542,0.29363419,3555.9,3554.9,3.363925]
[1733245489543,0.7939,3555.8,3554.9,0.363925]
[1733245489751,0.7939,3555.8,3555.3,2.81262]
[1733245490308,0.7939,3555.8,3555.0,0.01436803]
[1733245490539,0.7939,3555.8,3555.4,2.8126]
[1733245490945,0.7939,3555.8,3554.8,3.0]
[1733245491271,0.7939,3555.8,3555.7,2.81238]
[1733245492044,0.29363419,3555.9,3555.7,0.281238]
[1733245492244,0.29363419,3555.9,3555.8,2.8123]
[1733245493536,0.29363419,3555.9,3555.2,2.81272]
[1733245493707,0.29363419,3555.9,3555.7,2.81237]
[1733245494811,0.29363419,3555.9,3555.3,3.0]
[1733245495034,0.7526,3555.8,3554.5,2.81326]
[1733245495310,0.7526,3555.8,3555.3,2.81263]
[1733245495930,0.7526,3555.8,3555.4,2.8126]
[1733245496135,0.7526,3555.8,3555.5,2.81248]
[1733245496356,0.7526,3555.8,3555.6,2.81246]
[1733245497056,0.7526,3555.8,3554.4,3.8261]
[1733245497234,0.7526,3555.8,3555.3,2.8127]
[1733245497435,0.7526,3555.8,3555.5,2.81247]
[1733245497652,0.7526,3555.8,3555.6,2.81242]
[1733245498363,0.7526,3555.8,3555.7,2.81238]
[1733245498670,0.29363419,3555.9,3555.8,2.8123]
[1733245499022,0.29363419,3555.9,3555.7,0.562493]
[1733245499325,0.03515076,3555.8,3554.4,0.7689]
[1733245499527,0.7703,3555.8,3554.4,0.7689]
[1733245499751,0.7703,3555.8,3555.0,2.81288]
[1733245499950,3.61779797,3555.8,3554.7,2.81311]
[1733245500164,0.80545797,3555.8,3554.5,2.81332]
[1733245500364,0.7672,3555.6,3554.5,2.81332]
[1733245500522,2.81262,3555.4,3554.3,3.171587]
[1733245500726,0.55,3555.2,3553.6,0.8029]
[1733245500973,0.55,3555.0,3553.6,0.8029]
[1733245501141,0.8276,3555.1,3554.4,2.8134]
[1733245501345,0.8276,3555.1,3553.6,0.8029]
[1733245501545,0.8276,3555.1,3553.7,2.81396]
[1733245501858,0.8276,3555.1,3554.7,2.81311]
[1733245502029,0.8276,3555.1,3553.9,2.81381]
[1733245502373,0.8276,3555.1,3554.3,2.81345]
[1733245502531,0.8276,3555.1,3554.7,2.81316]
[1733245502728,0.8276,3555.1,3554.8,2.81307]
[1733245502970,0.8276,3555.1,3554.0,2.81373]
[1733245502971,3.0,3556.2,3554.4,0.8065]
[1733245503175,0.29368675,3555.0,3554.5,0.362007]
[1733245503359,0.29368675,3555.0,3554.9,2.81301]
[1733245503577,0.751,3556.1,3555.6,2.81246]
[1733245503872,0.751,3556.1,3554.9,2.81301]
[1733245504173,0.29365983,3556.0,3555.6,2.81245]
[1733245504887,0.29365983,3556.0,3554.4,0.8065]
[1733245505038,0.29365983,3556.0,3554.5,3.98983913]
[1733245505378,0.29365983,3556.0,3555.5,2.81254]
[1733245507183,0.29365983,3556.0,3554.7,2.81317]
[1733245507386,0.29365983,3556.0,3555.5,2.81246]
[1733245507539,0.29365983,3556.0,3555.6,2.81245]
[1733245507743,0.29365983,3556.0,3555.9,2.81222]
[1733245508779,0.29365983,3556.0,3555.1,2.81283]
[1733245508941,0.8085,3555.9,3555.0,2.81293]
[1733245509139,0.8085,3555.9,3555.7,2.81231]
[1733245509461,0.8085,3555.9,3555.8,2.8123]
[1733245509854,0.8085,3555.9,3555.6,2.81243]
[1733245510048,0.8085,3555.9,3555.4,2.81258]
[1733245510254,0.8085,3555.9,3555.8,2.8123]
[1733245510991,0.8085,3555.9,3554.8,0.7541]
[1733245511136,0.8085,3555.9,3555.5,2.81247]
[1733245511581,0.8085,3555.9,3555.7,2.81237]
[1733245512075,0.8085,3555.9,3554.9,2.81301]
[1733245512283,0.8085,3555.9,3555.8,2.8123]
[1733245512783,0.8085,3555.9,3555.2,2.8127]
[1733245513073,0.8085,3555.9,3555.3,2.8127]
[1733245513391,0.2936031,3555.8,3555.0,0.356711]
[1733245513674,0.2936031,3555.8,3555.4,2.81257]
[1733245513874,0.2936031,3555.8,3554.8,0.7541]
[1733245514179,0.2936031,3555.8,3555.4,2.8126]
[1733245514380,0.2936031,3555.8,3554.9,2.81294]
[1733245514599,0.32875895,3555.8,3554.9,2.81296]
[1733245514818,0.8183,3555.6,3554.9,2.81294]
[1733245515103,0.03515981,3555.5,3554.7,2.81314]
[1733245515265,0.03515981,3555.5,3554.8,2.81309]
[1733245515462,0.8183,3555.4,3554.5,3.80308913]
[1733245515661,0.8183,3555.4,3554.8,2.81302]
[1733245515857,0.8183,3555.4,3554.5,0.98983913]
[1733245516098,0.8183,3555.4,3554.6,2.81324]
[1733245516303,0.03516248,3555.3,3554.6,2.81324]
[1733245516502,0.8183,3555.4,3554.7,2.81316]
[1733245516661,0.03516248,3555.3,3554.7,2.81316]
[1733245516864,0.7666,3555.2,3554.3,2.81342]
[1733245517187,0.8251,3555.0,3554.3,2.81342]
[1733245517388,0.8251,3555.0,3553.8,0.361686]
[1733245517591,0.8251,3555.0,3553.9,0.43935168]
[1733245517780,0.8251,3555.0,3554.3,2.81346]
[1733245518100,0.8251,3555.0,3553.9,0.43935168]
[1733245518307,0.8251,3555.0,3553.6,1.21791076]
[1733245518308,0.8251,3555.0,3554.0,2.81369]
[1733245518613,0.8251,3555.0,3554.4,2.81337]
[1733245519503,0.8251,3555.0,3553.6,1.21791076]
[1733245519666,0.8251,3555.0,3554.4,2.81339]
[1733245520274,0.8251,3555.0,3554.2,2.81354]
[1733245520703,0.03516652,3554.9,3554.0,5.8137]
[1733245520876,0.7571,3554.7,3554.3,2.81348]
[1733245521078,0.7571,3554.7,3554.0,2.81373]
[1733245521296,0.7571,3554.7,3553.9,3.0]
[1733245521603,0.7571,3554.7,3554.1,2.81358]
[1733245521807,0.7571,3554.7,3554.1,0.86274]
[1733245522044,0.7571,3554.7,3553.6,0.44001076]
[1733245522045,0.7571,3554.7,3553.8,2.81388]
[1733245522205,0.7571,3554.7,3553.9,3.0]
[1733245522398,0.55,3555.5,3554.7,2.81313]
[1733245522612,0.55,3555.5,3554.8,2.81303]
[1733245522813,0.55,3555.5,3554.4,2.81337]
[1733245523039,0.55,3555.5,3554.0,2.81373]
[1733245523040,0.8095,3555.6,3554.6,0.8023]
[1733245523253,0.8095,3555.6,3554.6,2.81319]
[1733245523447,0.84465883,3555.6,3554.5,0.281337]
[1733245523647,0.84465883,3555.6,3555.2,2.81275]
[1733245523648,0.8095,3555.6,3555.2,2.81275]
[1733245523823,0.8095,3555.6,3554.5,0.281337]
[1733245523824,0.8095,3555.6,3555.1,2.81283]
[1733245524140,0.8095,3555.6,3555.1,0.281283]
[1733245524355,0.8095,3555.6,3555.5,2.81254]
[1733245524559,0.2936031,3555.8,3555.7,2.81238]
[1733245525107,0.2936031,3555.8,3555.2,2.81271]
[1733245525312,0.2936031,3555.8,3555.3,3.0]
[1733245525508,0.2936031,3555.8,3554.7,3.0]
[1733245525725,0.2936031,3555.8,3555.5,2.81253]
[1733245526352,0.2936031,3555.8,3555.6,2.81243]
[1733245526720,0.2936031,3555.8,3555.1,2.81281]
[1733245526721,0.2936031,3555.8,3555.4,2.81259]
[1733245526923,0.2936031,3555.8,3555.1,2.81281]
[1733245527222,0.2936031,3555.8,3555.6,2.81238]
[1733245527409,0.2936031,3555.8,3555.7,2.81238]
[1733245527613,0.2936031,3555.8,3555.7,3.093618]
[1733245527810,0.2936031,3555.8,3555.1,3.0]
[1733245528014,0.2936031,3555.8,3555.6,2.81245]
[1733245528554,0.2936031,3555.8,3555.1,3.0]
[1733245528849,0.2936031,3555.8,3555.4,2.81262]
[1733245529064,0.2936031,3555.8,3555.4,2.81258]
[1733245529212,0.2936031,3555.8,3554.6,3.7517]
[1733245529412,0.2936031,3555.8,3555.2,2.81276]
[1733245529667,0.2936031,3555.8,3555.3,2.8127]
[1733245530200,0.2936031,3555.8,3554.9,0.44363217]
[1733245530378,0.2936031,3555.8,3555.4,2.81257]
[1733245532009,0.2936031,3555.8,3554.9,0.44363217]
[1733245532193,0.32875943,3555.8,3555.1,2.81285]
[1733245532389,0.07211103,3555.7,3555.1,2.81285]
[1733245532581,0.32875943,3555.8,3555.1,3.20696039]
[1733245532779,0.32875943,3555.8,3554.9,2.81298]
[1733245533111,0.85303927,3555.7,3554.8,2.81302]
[1733245533348,0.85303927,3555.7,3555.1,2.81284]
[1733245533483,0.85303927,3555.7,3554.3,0.01437139]
[1733245533809,0.85303927,3555.7,3554.4,2.81341]
[1733245534122,0.2936031,3555.8,3555.6,2.81246]
[1733245534278,0.2936031,3555.8,3554.8,5.81309]
[1733245534482,0.2936031,3555.8,3554.9,3.0]
[1733245534726,0.2936031,3555.8,3555.3,2.81263]
[1733245534894,0.07141216,3555.7,3555.3,2.81263]
[1733245535093,0.2936031,3555.8,3555.0,2.81287]
[1733245535305,0.2936031,3555.8,3555.2,2.81278]
[1733245535615,0.0715075,3555.7,3555.2,2.81278]
[1733245535989,0.0715075,3555.7,3555.1,2.81285]
[1733245536187,0.0715075,3555.7,3555.2,2.81277]
[1733245536502,0.0715075,3555.7,3555.0,0.361587]
[1733245536703,0.0715075,3555.7,3555.1,0.6174637]
[1733245537223,0.0715075,3555.7,3555.0,3.174447]
[1733245537423,0.0715075,3555.7,3555.1,3.0]
[1733245537720,0.0715075,3555.7,3555.0,0.361587]
[1733245538031,0.0715075,3555.7,3555.6,2.81246]
[1733245538386,0.2936031,3555.8,3555.0,0.361587]
[1733245538387,0.2936031,3555.8,3555.3,2.81265]
[1733245538687,0.0715234,3555.7,3555.1,2.81279]
[1733245539026,0.82715583,3555.6,3554.5,0.36307778]